bitfinex/quotes_SOLUSD_20250819
["timestamp","ask_amount","ask_price","bid_price","bid_amount"]
[1755571704500,0.06,182.89,182.85,0.57]
[1755571704872,0.06,182.89,182.87,9.34985247]
[1755571705098,0.06,182.89,182.88,9.34985247]
[1755571707778,10.12985247,182.89,182.84,26.0]
[1755571708089,10.12985247,182.89,182.81,9.349852]
[1755571708090,9.34985247,182.87,182.81,9.349852]
[1755571708393,13.00802363,182.87,182.82,9.34985247]
[1755571708590,9.34985247,182.87,182.82,9.34985247]
[1755571708793,10.06985247,182.87,182.82,9.34985247]
[1755571709602,0.72,182.87,182.82,9.34985247]
[1755571709926,48.64985247,182.88,182.83,9.91985247]
[1755571710812,49.36985247,182.88,182.83,6.03946135]
[1755571711020,49.36985247,182.88,182.83,15.38931382]
[1755571711822,49.36985247,182.88,182.83,9.34985247]
[1755571712127,146.43058492,182.87,182.81,9.34985247]
[1755571712432,10.06985247,182.86,182.81,9.34985247]
[1755571712599,0.72,182.85,182.81,9.34985247]
[1755571713508,147.5183816,182.87,182.81,14.81992317]
[1755571713698,148.2383816,182.87,182.81,14.81992317]
[1755571713895,15.10621557,182.86,182.8,31.4704558]
[1755571714127,9.34985247,182.84,182.8,5.4704558]
[1755571714722,9.34985247,182.84,182.76,13.67881038]
[1755571714723,9.34985247,182.82,182.77,14.82120991]
[1755571714903,10.06985247,182.81,182.76,9.34985247]
[1755571715527,39.28,182.82,182.78,9.34985247]
[1755571715726,48.62985247,182.82,182.76,6.04165265]
[1755571715922,10.06985247,182.81,182.76,14.82150512]
[1755571716118,9.34985247,182.81,182.76,14.82150512]
[1755571716330,39.28,182.82,182.77,9.91985247]
[1755571716631,39.28,182.82,182.78,9.34985247]
[1755571716807,39.28,182.82,182.77,0.57]
[1755571717134,39.28,182.82,182.78,9.34985247]
[1755571717135,40.0,182.82,182.78,9.34985247]
[1755571717523,39.28,182.82,182.8,9.34985247]
[1755571718201,39.28,182.82,182.81,9.34985247]
[1755571718424,39.28,182.85,182.81,9.91985247]
[1755571718619,132.7,182.87,182.84,9.34985247]
[1755571719116,132.7,182.87,182.86,9.34985247]
[1755571719314,132.7,182.87,182.85,9.34985247]
[1755571720600,132.7,182.87,182.85,14.8187725]
[1755571720810,0.06,182.89,182.86,9.34985247]
[1755571721006,0.06,182.89,182.87,9.34985247]
[1755571721623,0.06,182.89,182.86,9.34985247]
[1755571721822,0.74,182.89,182.86,9.34985247]
[1755571722435,10.02985247,182.88,182.84,5.46926274]
[1755571722733,0.68,182.87,182.84,5.46926274]
[1755571723722,9.34985247,182.87,182.82,9.34985247]
[1755571724048,10.02985247,182.86,182.82,5.4697782]
[1755571724209,9.34985247,182.86,182.82,5.4697782]
[1755571724412,0.68,182.85,182.82,5.4697782]
[1755571725039,0.06,182.89,182.83,9.34985247]
[1755571725040,40.0,182.89,182.83,9.34985247]
[1755571725215,49.34985247,182.89,182.84,9.34985247]
[1755571725542,10.02985247,182.88,182.83,9.34985247]
[1755571725717,0.68,182.87,182.83,14.81932002]
[1755571726338,9.34985247,182.88,182.83,14.81932002]
[1755571726540,9.34985247,182.88,182.83,15.38932002]
[1755571726841,0.68,182.88,182.84,9.34985247]
[1755571727544,39.32,182.89,182.85,9.91985247]
[1755571727720,0.06,182.89,182.88,9.34985247]
[1755571728033,0.06,182.89,182.88,9.91985247]
[1755571729039,0.06,182.89,182.88,9.34985247]
[1755571729247,0.06,182.89,182.86,14.81851702]
[1755571729623,0.06,182.89,182.87,9.34985247]
[1755571729807,0.06,182.89,182.88,9.34985247]
[1755571731047,0.06,182.89,182.87,9.34985247]
[1755571732122,0.06,182.89,182.84,14.81911521]
[1755571732123,0.68,182.88,182.84,14.81911521]
[1755571734614,9.40985247,182.89,182.84,14.81911521]
[1755571734940,0.74,182.89,182.85,9.34985247]
[1755571735444,0.06,182.89,182.88,9.34985247]
[1755571735615,0.06,182.89,182.88,9.91985247]
[1755571736142,0.06,182.89,182.88,35.91985247]
[1755571736636,1e-08,182.89,182.88,35.91985247]
[1755571736815,1e-08,182.89,182.88,41.38791896]
[1755571737528,1e-08,182.89,182.88,15.38791896]
[1755571739547,1e-08,182.89,182.88,31.46806649]
[1755571739748,1e-08,182.89,182.88,40.81791896]
[1755571740444,1e-08,182.89,182.88,15.38791896]
[1755571740942,1e-08,182.89,182.88,41.38791896]
[1755571741260,1e-08,182.89,182.88,40.81791896]
[1755571741647,1e-08,182.89,182.88,41.38791896]
[1755571741832,1e-08,182.89,182.88,15.38791896]
[1755571743345,1e-08,182.91,182.9,26.0]
[1755571743535,1e-08,182.91,182.9,74.58985247]
[1755571743735,1e-08,182.91,182.9,75.15985247]
[1755571744574,1e-08,182.91,182.9,74.58985247]
[1755571745232,1e-08,182.91,182.9,80.05732103]
[1755571745439,1e-08,182.91,182.9,80.62732103]
[1755571745747,1e-08,182.91,182.9,82.81832103]
[1755571746457,0.68000001,182.91,182.9,31.46746856]
[1755571747149,0.68000001,182.91,182.89,9.34985247]
[1755571747150,0.68000001,182.91,182.89,5.46771519]
[1755571747750,1e-08,182.91,182.89,14.81756766]
[1755571747950,1e-08,182.91,182.9,9.34985247]
[1755571749350,1e-08,182.91,182.9,40.81732103]
[1755571750649,1e-08,182.91,182.9,80.03732103]
[1755571753647,0.67000001,182.91,182.9,80.03732103]
[1755571753846,0.67000001,182.91,182.89,5.46769037]
[1755571754171,0.67,182.9,182.89,5.46769037]
[1755571754477,1e-08,182.91,182.89,14.81754284]
[1755571755078,0.67000001,182.91,182.89,14.81754284]
[1755571755276,1e-08,182.91,182.9,9.34985247]
[1755571758378,1e-08,182.91,182.9,5.9240185]
[1755571758577,1e-08,182.91,182.9,50.53148706]
[1755571759479,1e-08,182.91,182.9,52.72284706]
[1755571762201,1e-08,182.91,182.9,50.53148706]
[1755571763101,1e-08,182.91,182.9,52.72284706]
[1755571764012,1e-08,182.91,182.9,79.29284706]
[1755571764318,1e-08,182.91,182.9,53.29284706]
[1755571764493,1e-08,182.91,182.9,52.72284706]
[1755571764661,0.67000001,182.91,182.9,2.19136]
[1755571764867,6.59401851,182.91,182.88,5.4979922]
[1755571765072,6.5940185,182.9,182.88,0.03]
[1755571765292,0.67,182.9,182.88,0.03]
[1755571765609,0.67,182.89,182.88,0.03]
[1755571766910,1e-08,182.91,182.88,0.03]
[1755571767204,1e-08,182.91,182.89,5.9240185]
[1755571767404,0.67,182.9,182.88,45.0340185]
[1755571767604,0.67,182.89,182.88,39.11]
[1755571768099,0.67,182.89,182.88,0.03]
[1755571768594,1e-08,182.91,182.88,5.9540185]
[1755571768784,1e-08,182.91,182.9,11.39148706]
[1755571769899,1e-08,182.91,182.9,5.46746856]
[1755571770927,6.59401851,182.91,182.88,0.03]
[1755571771236,0.67,182.9,182.88,0.03]
[1755571771689,0.67,182.89,182.88,0.03]
[1755571772620,0.67000001,182.91,182.88,0.03]
[1755571772916,0.67,182.9,182.88,0.03]
[1755571773118,1e-08,182.91,182.89,5.9240185]
[1755571773420,0.67000001,182.91,182.89,5.9240185]
[1755571774290,1e-08,182.91,182.9,11.39148706]
[1755571774494,1e-08,182.91,182.9,5.46746856]
[1755571775002,1e-08,182.91,182.9,11.39148706]
[1755571775522,1e-08,182.91,182.9,51.00148706]
[1755571777533,0.06,182.93,182.92,26.0]
[1755571777733,0.06,182.93,182.92,70.9640185]
[1755571777913,0.06,182.93,182.92,71.5340185]
[1755571778108,0.06,182.93,182.92,77.00088926]
[1755571778310,0.06,182.94,182.92,77.00088926]
[1755571778545,0.06,182.94,182.93,6.4940185]
[1755571778546,1e-08,182.94,182.93,6.4940185]
[1755571779920,0.73,182.99,182.96,26.0]
[1755571780242,0.06,182.99,182.96,70.9640185]
[1755571780840,0.73,182.97,182.96,65.04]
[1755571781738,0.06,182.97,182.96,65.04]
[1755571781944,0.06,182.97,182.96,76.42969405]
[1755571782528,0.06,182.97,182.96,70.50567555]
[1755571782728,0.73,182.97,182.96,76.42969405]
[1755571783223,0.73,182.97,182.96,70.50567555]
[1755571784041,0.06,182.97,182.96,76.42969405]
[1755571784416,0.06,182.97,182.96,86.03163105]
[1755571788346,0.06,182.99,182.96,86.60163105]
[1755571788518,0.06,182.99,182.98,5.9240185]
[1755571788740,0.06,182.99,182.98,44.9440185]
[1755571789026,1e-08,182.99,182.98,61.9393245]
[1755571789427,0.67000001,182.99,182.98,42.425306]
[1755571789649,0.67000001,182.99,182.98,65.02]
[1755571790048,0.67000001,182.99,182.98,31.924018]
[1755571790250,0.67000001,182.99,182.98,76.40909615]
[1755571790841,1e-08,182.99,182.98,82.33311465]
[1755571791218,1e-08,182.99,182.98,82.90311465]
[1755571792041,1e-08,182.99,182.98,56.90311465]
[1755571792934,1e-08,182.99,182.98,72.00933022]
[1755571793120,1e-08,183.01,183.0,41.10621557]
[1755571793449,1e-08,183.01,183.0,86.05023407]
[1755571793752,1e-08,183.01,183.0,86.62023407]
[1755571794655,1e-08,183.01,183.0,92.08471494]
[1755571798528,1e-08,183.01,183.0,91.51471494]
[1755571798929,1e-08,183.01,183.0,93.70427594]
[1755571799450,1e-08,183.01,183.0,94.27427594]
[1755571800657,1e-08,183.01,183.0,93.70427594]
[1755571801043,1e-08,183.01,183.0,94.27427594]
[1755571802470,1e-08,183.01,183.0,93.70427594]
[1755571803460,1e-08,183.01,183.0,39.57806037]
[1755571803781,0.67000001,183.01,183.0,78.57806037]
[1755571804463,0.06,183.03,183.0,78.57806037]
[1755571804664,0.06,183.03,183.02,5.9240185]
[1755571804866,0.06,183.03,183.02,44.9240185]
[1755571805747,0.06,183.03,183.02,39.0]
[1755571805951,5.9840185,183.03,183.02,39.0]
[1755571806132,0.06,183.03,183.02,44.46388372]
[1755571806547,0.73,183.03,183.02,44.46388372]
[1755571806752,6.6540185,183.03,183.01,5.4640989]
[1755571806959,0.67,183.02,183.01,44.4640989]
[1755571808244,0.67,183.02,183.01,39.0]
[1755571808447,6.5940185,183.02,182.98,0.03]
[1755571808774,5.9240185,182.99,182.96,5.984018]
[1755571808942,6.6340185,182.98,182.94,39.0]
[1755571809142,0.71,182.97,182.94,44.9240185]
[1755571809442,0.71,182.99,182.96,5.9240185]
[1755571809757,0.06,183.01,182.98,26.0]
[1755571810054,0.06,183.01,182.98,31.46478784]
[1755571810466,0.71,183.0,182.98,31.46478784]
[1755571810770,0.71,182.99,182.98,31.46478784]
[1755571811287,0.71,182.99,182.98,26.0]
[1755571811645,0.71,182.99,182.98,31.46507815]
[1755571812449,0.77,183.01,182.98,31.46507815]
[1755571812656,0.71,183.0,182.98,31.46507815]
[1755571812853,0.71,183.0,182.98,37.38909665]
[1755571813148,0.06,183.01,182.98,37.38909665]
[1755571813364,0.71,183.0,182.98,37.38909665]
[1755571813672,0.06,183.01,182.99,5.9240185]
[1755571813967,0.06,183.01,183.0,5.9240185]
[1755571814167,0.06,183.01,183.0,11.38849937]
[1755571814370,0.06,183.01,183.0,12.09849937]
[1755571815456,1e-08,183.01,183.0,12.09849937]
[1755571815656,1e-08,183.01,183.0,11.38849937]
[1755571816276,1e-08,183.01,183.0,12.09849937]
[1755571817962,1e-08,183.01,183.0,27.20471494]
[1755571818659,0.1,183.04,183.03,26.0]
[1755571818858,1e-08,183.04,183.03,70.9240185]
[1755571819060,1e-08,183.04,183.03,71.6340185]
[1755571820562,1e-08,183.04,183.03,77.0976037]
[1755571820777,1e-08,183.04,183.03,76.3876037]
[1755571823163,1e-08,183.04,183.03,78.5770447]
[1755571823573,1e-08,183.04,183.03,79.2870447]
[1755571823890,1e-08,183.04,183.03,73.3630262]
[1755571824065,1e-08,183.04,183.03,79.2870447]
[1755571826867,1e-08,183.04,183.03,94.39326027]
[1755571828490,1e-08,183.05,183.03,94.39326027]
[1755571828690,1e-08,183.06,183.04,26.95425257]
[1755571828870,1e-08,183.06,183.05,60.03023407]
[1755571829186,1e-08,183.06,183.05,60.74023407]
[1755571829391,1e-08,183.06,183.05,62.92919607]
[1755571829595,1e-08,183.06,183.05,47.1129805]
[1755571829770,1e-08,183.06,183.05,34.1129805]
[1755571829771,0.71000001,183.06,183.05,34.1129805]
[1755571830097,0.71000001,183.06,183.05,73.1129805]
[1755571830483,0.71000001,183.06,183.05,70.9240185]
[1755571830801,0.71000001,183.06,183.05,76.38700675]
[1755571831294,0.71000001,183.06,183.05,70.46298825]
[1755571831501,0.71000001,183.06,183.05,76.38700675]
[1755571832392,0.71000001,183.06,183.03,5.46332928]
[1755571832595,5.9240185,183.04,183.0,2.219801]
[1755571832777,0.71,183.03,183.01,44.44415114]
[1755571833283,6.6340185,183.03,183.0,5.49440926]
[1755571833606,5.9240185,183.01,183.0,0.03]
[1755571833973,6.6340185,183.01,183.0,0.03]
[1755571834493,0.71,183.01,183.0,0.03]
[1755571834895,0.71,183.01,183.0,5.9540185]
[1755571835210,0.71,183.03,183.0,44.9340185]
[1755571835517,1e-08,183.06,183.0,44.9340185]
[1755571835697,0.71,183.05,183.0,39.01]
[1755571835873,3.67401643,183.06,183.02,5.9240185]
[1755571836074,0.71,183.04,183.02,39.0]
[1755571836292,3.67401643,183.06,183.02,44.4637017]
[1755571836473,0.71,183.05,183.02,44.4637017]
[1755571836678,3.67401643,183.06,183.02,44.4637017]
[1755571836884,0.71,183.04,183.02,44.4637017]
[1755571837185,0.71,183.03,183.02,39.0]
[1755571837693,6.6340185,183.03,183.0,39.03]
[1755571837877,5.9240185,183.01,183.0,0.03]
[1755571838078,6.5840185,183.02,183.0,0.03]
[1755571838295,0.66,183.01,183.0,0.03]
[1755571839815,6.5840185,183.01,183.0,0.03]
[1755571840221,132.7,183.03,183.0,6.6140185]
[1755571840431,132.7,183.03,183.02,5.9240185]
[1755571840632,0.66000001,183.06,183.02,5.9240185]
[1755571840786,3.6723197,183.06,183.02,5.9240185]
[1755571841124,0.66,183.05,183.02,5.9240185]
[1755571841319,0.66,183.04,183.0,5.9540185]
[1755571841496,6.5840185,183.04,183.0,0.03]
[1755571841697,0.66,183.04,183.0,5.9540185]
[1755571841898,0.66,183.03,183.01,5.46418228]
[1755571842114,0.66,183.02,183.01,5.46418228]
[1755571842806,0.66,183.02,183.0,11.41843566]
[1755571842997,0.66,183.01,183.0,11.41843566]
[1755571843595,0.66,183.01,183.0,5.49441716]
[1755571844317,0.66,183.03,183.0,5.49441716]
[1755571844518,0.66,183.03,183.0,11.41843566]
[1755571845218,4.3323197,183.06,183.02,5.9240185]
[1755571845409,4.3323197,183.06,183.03,5.9240185]
[1755571845607,0.66000001,183.06,183.03,5.9240185]
[1755571845816,0.66000001,183.06,183.02,0.66]
[1755571845817,1e-08,183.06,183.05,5.9240185]
[1755571846112,1e-08,183.06,183.05,11.38700675]
[1755571847014,1e-08,183.06,183.05,77.04700675]
[1755571850120,1e-08,183.06,183.05,79.23620875]
[1755571851303,1e-08,183.06,183.05,53.23620875]
[1755571852428,1e-08,183.06,183.05,68.34242432]
[1755571854010,1e-08,183.06,183.05,7.65219025]
[1755571854224,1e-08,183.06,183.05,52.55620875]
[1755571854924,1e-08,183.06,183.05,78.55620875]
[1755571856504,0.66000001,183.06,183.05,44.44298825]
[1755571856721,0.66000001,183.06,183.04,5.46323713]
[1755571857252,1e-08,183.06,183.04,5.46323713]
[1755571857402,1e-08,183.06,183.04,11.38725563]
[1755571857600,1e-08,183.06,183.05,31.9240185]
[1755571857900,1e-08,183.06,183.05,45.5640185]
[1755571858222,1e-08,183.06,183.05,51.02700675]
[1755571861009,1e-08,183.06,183.05,50.36700675]
[1755571861730,1e-08,183.06,183.05,51.02700675]
[1755571863615,0.1,183.08,183.07,31.9240185]
[1755571863805,0.1,183.08,183.07,70.9040185]
[1755571864438,0.1,183.08,183.07,76.36640993]
[1755571865834,0.1,183.08,183.07,78.55549193]
[1755571866343,0.1,183.08,183.07,76.36640993]
[1755571866515,0.1,183.08,183.07,78.55549193]
[1755571870342,1e-08,183.08,183.07,79.22549193]
[1755571871923,1e-08,183.12,183.11,26.0]
[1755571872134,1e-08,183.12,183.11,70.8840185]
[1755571872330,1e-08,183.12,183.11,77.01521668]
[1755571872743,1e-08,183.12,183.11,76.34521668]
[1755571873722,1e-08,183.12,183.11,77.01521668]
[1755571873918,1e-08,183.12,183.11,82.26923568]
[1755571874826,0.70000001,183.12,183.11,82.26923568]
[1755571875026,1e-08,183.12,183.11,82.26923568]
[1755571875246,1e-08,183.12,183.11,82.93923568]
[1755571875562,1e-08,183.12,183.11,98.04545125]
[1755571876363,1e-08,183.12,183.11,97.37545125]
[1755571876747,1e-08,183.12,183.11,82.26923568]
[1755571877057,0.70000001,183.12,183.11,82.26923568]
[1755571877245,1e-08,183.12,183.11,82.26923568]
[1755571879336,1e-08,183.12,183.11,82.93923568]
[1755571879647,1e-08,183.12,183.11,98.04545125]
[1755571881046,1e-08,183.12,183.11,92.12143275]
[1755571881246,1e-08,183.12,183.11,98.04545125]
[1755571881476,1e-08,183.14,183.12,15.10621557]
[1755571881660,1e-08,183.14,183.13,59.99023407]
[1755571881980,1e-08,183.14,183.13,60.66023407]
[1755571882474,0.06,183.18,183.16,26.0]
[1755571882679,0.06,183.18,183.17,44.8840185]
[1755571882887,0.76,183.18,183.17,44.8840185]
[1755571883554,0.06,183.18,183.17,50.34342779]
[1755571883770,0.06,183.18,183.17,58.07369879]
[1755571883969,0.7,183.22,183.2,26.0]
[1755571884184,0.7,183.22,183.21,38.94]
[1755571884368,0.7,183.22,183.21,44.8640185]
[1755571884683,0.7,183.22,183.21,61.2704605]
[1755571885063,0.7,183.22,183.21,66.72867784]
[1755571885562,0.7,183.22,183.21,60.80465934]
[1755571885876,0.7,183.22,183.21,44.39821734]
[1755571887287,0.7,183.22,183.21,50.32223584]
[1755571888787,3.66197326,183.25,183.21,50.32223584]
[1755571888788,0.7,183.25,183.21,50.99223584]
[1755571888946,0.7,183.25,183.24,31.9240185]
[1755571889146,0.7,183.28,183.24,64.94]
[1755571889349,0.7,183.27,183.24,64.94]
[1755571889544,0.7,183.27,183.24,70.8640185]
[1755571889852,3.6602427,183.3,183.24,70.8640185]
[1755571889853,0.7,183.26,183.24,70.8640185]
[1755571890048,0.7,183.26,183.25,5.9240185]
[1755571890253,3.6602427,183.3,183.25,5.9240185]
[1755571890458,132.7,183.31,183.24,64.94]
[1755571890459,0.7,183.28,183.26,44.8640185]
[1755571890655,0.7,183.28,183.27,5.4564304]
[1755571890872,138.6240185,183.31,183.27,5.4564304]
[1755571891270,3.65843787,183.3,183.27,5.4564304]
[1755571891580,0.7,183.29,183.27,5.4564304]
[1755571891754,138.6240185,183.31,183.27,5.4564304]
[1755571891958,0.7,183.28,183.27,5.4564304]
[1755571892863,0.76,183.28,183.27,5.4564304]
[1755571893358,0.06,183.28,183.27,27.7824069]
[1755571893556,0.06,183.28,183.27,21.8583884]
[1755571893778,0.76,183.28,183.27,44.3964304]
[1755571893974,0.76,183.28,183.27,38.94]
[1755571894782,0.76,183.28,183.26,11.38068718]
[1755571894960,0.76,183.28,183.27,38.94]
[1755571895568,0.76,183.28,183.26,44.37666918]
[1755571895855,0.06,183.28,183.26,50.30068718]
[1755571896056,0.7,183.27,183.26,50.30068718]
[1755571898166,0.7,183.27,183.26,44.37666918]
[1755571898487,0.7,183.27,183.26,38.92]
[1755571898657,0.7,183.27,183.24,37.3812628]
[1755571898658,6.6240185,183.27,183.24,38.92]
[1755571898859,0.67,183.26,183.24,38.92]
[1755571899088,0.67,183.25,183.24,38.92]
[1755571899287,0.67,183.25,183.23,38.92]
[1755571899785,0.67,183.25,183.23,44.8440185]
[1755571899981,0.06,183.28,183.23,44.8440185]
[1755571900171,0.06,183.28,183.26,5.9240185]
[1755571900369,0.06,183.28,183.27,5.9240185]
[1755571900974,0.06,183.28,183.27,45.5340185]
[1755571901280,0.06,183.28,183.27,71.5340185]
[1755571901466,0.06,183.28,183.27,70.8440185]
[1755571902387,1e-08,183.28,183.27,76.9904489]
[1755571902561,1e-08,183.28,183.27,66.09666447]
[1755571902760,0.67,183.37,183.3,26.0]
[1755571902960,0.67,183.37,183.34,31.9240185]
[1755571903283,0.67,183.37,183.34,70.8440185]
[1755571903592,44.8440185,183.4,183.34,87.2388045]
[1755571903896,0.67,183.39,183.34,87.2388045]
[1755571904262,132.7,183.41,183.37,11.37721496]
[1755571904263,0.67,183.41,183.37,11.37721496]
[1755571904489,132.7,183.45,183.38,5.9240185]
[1755571904490,0.67,183.4,183.38,5.9240185]
[1755571905205,0.67,183.39,183.34,42.394786]
[1755571905407,0.67,183.38,183.34,42.394786]
[1755571905588,0.67,183.37,183.35,38.9]
[1755571905905,0.67,183.38,183.35,38.9]
[1755571906203,0.67,183.41,183.37,5.9240185]
[1755571906706,0.67,183.4,183.37,38.9]
[1755571907000,171.62,183.45,183.37,38.9]
[1755571907001,0.67,183.39,183.37,38.9]
[1755571907200,0.67,183.4,183.37,44.35334667]
[1755571907608,133.37,183.45,183.39,5.9240185]
[1755571907787,5.9240185,183.43,183.38,5.9240185]
[1755571907979,6.5940185,183.42,183.37,44.35334667]
[1755571908174,0.67,183.41,183.37,44.35334667]
[1755571908392,0.67,183.41,183.37,38.9]
[1755571908596,5.9240185,183.4,183.34,42.394786]
[1755571908782,5.9240185,183.38,183.35,38.9]
[1755571908988,6.5940185,183.37,183.34,42.394786]
[1755571909177,0.67,183.36,183.34,55.294786]
[1755571911002,6.5940185,183.39,183.34,60.74912909]
[1755571911183,6.6540185,183.39,183.34,61.43912909]
[1755571911387,0.73,183.39,183.34,67.36314759]
[1755571911795,6.5940185,183.38,183.34,55.294786]
[1755571912000,0.67,183.37,183.34,38.9]
[1755571913004,0.67,183.36,183.34,38.9]
[1755571913386,5.51286903,183.39,183.34,44.824019]
[1755571913387,6.5940185,183.38,183.34,44.824019]
[1755571913584,0.67,183.37,183.34,44.824019]
[1755571914109,0.67,183.37,183.34,50.2782718]
[1755571914299,0.06,183.39,183.34,50.2782718]
[1755571914300,133.43,183.39,183.34,50.2782718]
[1755571914500,138.6840185,183.39,183.34,45.0442528]
[1755571914689,0.67,183.38,183.34,50.9682713]
[1755571914891,0.67,183.38,183.34,67.3639533]
[1755571915399,138.6840185,183.39,183.35,6.14400409]
[1755571915594,139.3540185,183.39,183.35,6.14400409]
[1755571915903,6.5940185,183.38,183.34,60.75002406]
[1755571916089,5.9240185,183.38,183.34,44.35434206]
[1755571916290,0.67,183.37,183.34,44.35434206]
[1755571916698,0.67,183.37,183.33,17.085682]
[1755571916699,5.9240185,183.36,183.33,16.395682]
[1755571916904,6.5940185,183.35,183.33,16.395682]
[1755571917497,0.67,183.35,183.32,38.9]
[1755571917700,0.67,183.35,183.32,60.75239289]
[1755571917901,5.45334445,183.38,183.33,0.69]
[1755571917902,5.9240185,183.37,183.33,0.69]
[1755571918101,6.5940185,183.37,183.33,0.69]
[1755571918303,6.5940185,183.36,183.32,60.75239289]
[1755571918691,5.45320785,183.38,183.32,38.9]
[1755571918692,6.5940185,183.35,183.32,38.9]
[1755571918913,0.67,183.34,183.3,70.8240185]
[1755571919103,0.67,183.34,183.3,87.9123895]
[1755571919520,0.67,183.34,183.3,93.3678149]
[1755571919818,0.67,183.33,183.28,5.45612323]
[1755571920006,5.9240185,183.33,183.28,45.04612323]
[1755571920216,0.67,183.32,183.29,5.924019]
[1755571920414,5.9240185,183.3,183.25,6.6140185]
[1755571920722,6.5940185,183.3,183.27,5.924018]
[1755571920933,5.9240185,183.28,183.27,5.924018]
[1755571921231,38.9,183.31,183.27,5.9240185]
[1755571921519,38.9,183.31,183.27,6.6140185]
[1755571921715,39.57,183.31,183.27,6.6140185]
[1755571922027,39.57,183.31,183.27,5.9240185]
[1755571922911,0.67,183.3,183.27,5.9240185]
[1755571923114,38.9,183.31,183.27,11.38032431]
[1755571923426,38.9,183.31,183.27,12.07032431]
[1755571923602,39.57,183.31,183.27,11.38032431]
[1755571924528,0.67,183.3,183.26,5.45672814]
[1755571924728,44.8240185,183.31,183.24,0.03]
[1755571924729,5.9240185,183.27,183.24,0.03]
[1755571924898,6.5940185,183.29,183.24,5.9540185]
[1755571925099,6.5940185,183.29,183.24,6.6440185]
[1755571925314,6.5940185,183.29,183.24,5.9540185]
[1755571925626,6.5940185,183.29,183.25,0.69]
[1755571927026,139.2940185,183.28,183.24,0.03]
[1755571927233,5.9240185,183.25,183.24,0.03]
[1755571927730,0.69,183.25,183.24,0.03]
[1755571927928,6.6140185,183.25,183.24,0.03]
[1755571928127,0.69,183.25,183.24,0.03]
[1755571928306,44.8240185,183.27,183.24,0.03]
[1755571928705,6.6140185,183.26,183.24,0.03]
[1755571928942,0.69,183.26,183.24,0.03]
[1755571929229,38.9,183.27,183.24,0.72]
[1755571929439,38.9,183.27,183.24,0.03]
[1755571929606,38.9,183.27,183.24,0.72]
[1755571929806,138.6240185,183.28,183.26,11.3805527]
[1755571929807,132.7,183.28,183.26,11.3805527]
[1755571930029,132.7,183.28,183.26,12.0705527]
[1755571930239,5.9240185,183.33,183.27,6.6140185]
[1755571930441,7.72011168,183.32,183.29,5.9240185]
[1755571930631,3.65688767,183.33,183.29,5.9240185]
[1755571930928,0.69,183.33,183.29,5.9240185]
[1755571931245,6.6140185,183.33,183.28,6.6140185]
[1755571931425,0.69,183.32,183.27,31.9240185]
[1755571931630,5.9240185,183.3,183.26,5.4565342]
[1755571931837,5.9240185,183.31,183.26,11.3805527]
[1755571932145,0.69,183.31,183.27,6.6140185]
[1755571932447,6.6140185,183.31,183.27,0.69]
[1755571932617,6.6140185,183.31,183.26,11.3805527]
[1755571932824,5.9240185,183.31,183.26,5.4565342]
[1755571933017,0.69,183.3,183.26,11.3805527]
[1755571933423,6.6140185,183.32,183.27,6.6140185]
[1755571933744,5.9240185,183.32,183.27,0.69]
[1755571933960,5.9240185,183.3,183.26,5.4565342]
[1755571934122,0.69,183.29,183.26,5.4565342]
[1755571934553,5.9240185,183.3,183.26,5.4565342]
[1755571934853,0.69,183.29,183.26,5.4565342]
[1755571935486,6.6140185,183.31,183.26,12.0705527]
[1755571935660,0.69,183.3,183.26,12.0705527]
[1755571935857,5.9240185,183.29,183.26,6.1465342]
[1755571936063,5.9240185,183.3,183.27,0.69]
[1755571936271,5.9240185,183.3,183.28,0.69]
[1755571936955,5.9240185,183.3,183.26,5.4565342]
[1755571937260,5.9240185,183.3,183.27,0.69]